bitfinex-derivatives/quotes_BNBF0:USTF0_20250523
["timestamp","ask_amount","ask_price","bid_price","bid_amount"]
[1748032770105,2.59572053,663.02,662.04,1.46961811]
[1748032770305,1.08072053,663.01,662.04,1.46961811]
[1748032770504,1.515,663.02,662.04,1.46961811]
[1748032770698,1.08060291,663.01,662.04,1.46961811]
[1748032770901,1.515,663.02,662.04,1.46961811]
[1748032771101,1.515,663.02,662.08,1.46961811]
[1748032774109,1.515,663.02,662.1,1.46961811]
[1748032777107,1.515,663.02,662.11,1.46961811]
[1748032780208,1.515,663.02,662.16,1.46961811]
[1748032787224,1.515,663.02,662.1,1.46961811]
[1748032790322,1.515,663.02,662.12,1.46961811]
[1748032791224,1.08046375,663.01,662.12,1.46961811]
[1748032791424,1.515,663.02,662.12,1.46961811]
[1748032791721,1.08051192,663.01,662.12,1.46961811]
[1748032791925,1.515,663.02,662.12,1.46961811]
[1748032792125,1.0805244,663.01,662.12,1.46961811]
[1748032792426,1.515,663.02,662.12,1.46961811]
[1748032792631,1.08071732,663.01,662.12,1.46961811]
[1748032792924,1.515,663.02,662.12,1.46961811]
[1748032793126,1.08075683,663.01,662.12,1.46961811]
[1748032793326,1.515,663.02,661.37,0.4786009]
[1748032793327,1.08095174,663.0,662.16,1.46961811]
[1748032793527,1.515,663.02,662.16,1.46961811]
[1748032793722,1.08096627,663.01,662.16,1.46961811]
[1748032793922,1.08096627,663.0,662.16,1.46961811]
[1748032794124,1.515,663.02,662.16,1.46961811]
[1748032794322,1.08093445,663.01,662.16,1.46961811]
[1748032794526,1.08093445,663.0,662.16,1.46961811]
[1748032794728,1.515,663.02,662.16,1.46961811]
[1748032794927,1.08116579,663.01,662.16,1.46961811]
[1748032795127,1.08116579,663.0,662.16,1.46961811]
[1748032795328,1.08116579,662.99,662.16,1.46961811]
[1748032795529,1.515,663.02,662.19,1.46961811]
[1748032795729,1.08146018,663.01,662.19,1.46961811]
[1748032796029,1.08146018,663.0,662.19,1.46961811]
[1748032796328,1.08146018,662.99,662.19,1.46961811]
[1748032796525,1.08146018,662.98,662.19,1.46961811]
[1748032796728,1.515,663.02,662.19,1.46961811]
[1748032796924,1.08174403,663.01,662.19,1.46961811]
[1748032797129,1.08174403,663.0,662.19,1.46961811]
[1748032797326,1.08174403,662.99,662.19,1.46961811]
[1748032797534,1.08174403,662.98,662.19,1.46961811]
[1748032797730,1.515,663.02,662.19,1.46961811]
[1748032798032,1.08216623,663.01,662.19,1.46961811]
[1748032798228,1.08216623,663.0,662.19,1.46961811]
[1748032798431,1.515,663.02,662.19,1.46961811]
[1748032798432,1.08216623,662.99,662.19,1.46961811]
[1748032798629,1.08216623,662.98,662.21,1.46961811]
[1748032798831,1.08216623,662.97,662.21,1.46961811]
[1748032799034,2.63180473,663.02,662.21,1.46961811]
[1748032799235,1.55980246,663.01,662.21,1.46961811]
[1748032799435,1.55980437,663.0,662.21,1.46961811]
[1748032799637,1.08247993,662.99,662.21,1.46961811]
[1748032799839,1.08247993,662.98,662.21,1.46961811]
[1748032800039,1.08247993,662.97,662.21,1.46961811]
[1748032800239,1.08247993,662.96,662.21,1.46961811]
[1748032800441,2.63180473,663.02,662.21,1.46961811]
[1748032800739,1.08280345,663.01,662.21,1.46961811]
[1748032801038,1.08280345,663.0,662.21,1.46961811]
[1748032801239,1.08280345,662.99,662.21,1.46961811]
[1748032801440,1.08280345,662.98,662.21,1.46961811]
[1748032801642,1.515,663.02,662.23,1.46961811]
[1748032801841,1.08284469,663.01,662.23,1.46961811]
[1748032802043,1.08284469,663.0,662.23,1.46961811]
[1748032802243,1.08311758,662.99,662.23,1.46961811]
[1748032802438,1.515,663.02,662.23,1.46961811]
[1748032802636,1.08311827,663.01,662.23,1.46961811]
[1748032802842,1.08311827,663.0,662.23,1.46961811]
[1748032803042,1.08311827,662.99,662.23,1.46961811]
[1748032803247,1.515,663.02,662.23,1.46961811]
[1748032803544,1.08327067,663.01,662.23,1.46961811]
[1748032803847,1.08327067,663.0,662.23,1.46961811]
[1748032804047,1.515,663.02,662.23,1.46961811]
[1748032804347,1.08326828,663.01,662.23,1.46961811]
[1748032804543,1.08326828,663.0,662.27,1.46961811]
[1748032804846,1.08326828,662.99,662.27,1.46961811]
[1748032805049,1.08326828,662.98,662.27,1.46961811]
[1748032805347,1.515,663.02,662.27,1.46961811]
[1748032805547,1.0833706,663.01,662.27,1.46961811]
[1748032805746,1.0833706,663.0,662.27,1.46961811]
[1748032805948,1.08324433,662.99,662.27,1.46961811]
[1748032806143,1.08324433,662.98,662.27,1.46961811]
[1748032806341,1.515,663.02,662.27,1.46961811]
[1748032806546,1.08331293,663.01,662.27,1.46961811]
[1748032806747,1.08331293,663.0,662.27,1.46961811]
[1748032806947,1.08331293,662.99,662.27,1.46961811]
[1748032807148,1.08331293,662.98,662.27,1.46961811]
[1748032807346,1.515,663.02,662.27,1.46961811]
[1748032807541,1.08345648,663.01,662.27,1.46961811]
[1748032807742,1.0834573,663.0,662.27,1.46961811]
[1748032807946,1.515,663.02,662.27,1.46961811]
[1748032807947,1.0834573,662.99,662.27,1.46961811]
[1748032808147,1.0834573,662.98,662.27,1.46961811]
[1748032808447,1.0834573,662.97,662.27,1.46961811]
[1748032808649,1.515,663.02,662.27,1.46961811]
[1748032808845,1.08354518,663.01,662.27,1.46961811]
[1748032809043,1.08354518,663.0,662.27,1.46961811]
[1748032809247,1.08354518,662.99,662.27,1.46961811]
[1748032809448,1.08366017,662.98,662.27,1.46961811]
[1748032809748,1.08366017,662.97,662.27,1.46961811]
[1748032809947,1.515,663.02,662.27,1.46961811]
[1748032810148,1.56142929,663.01,662.27,1.46961811]
[1748032810346,1.08364943,663.0,662.27,1.46961811]
[1748032810546,1.08364943,662.99,662.27,1.46961811]
[1748032810751,1.08364943,662.98,662.27,1.46961811]
[1748032811051,1.08364943,662.97,662.27,1.46961811]
[1748032811247,1.08364943,662.96,662.27,1.46961811]
[1748032811552,1.11680473,663.03,662.27,1.46961811]
[1748032811752,1.56172033,663.02,662.27,1.46961811]
[1748032812052,1.56172033,663.01,662.27,1.46961811]
[1748032812256,1.0838709,663.0,662.27,1.46961811]
[1748032812449,1.0838709,662.99,662.27,1.46961811]
[1748032812646,1.0838709,662.98,662.27,1.46961811]
[1748032812851,1.0838709,662.97,662.27,1.46961811]
[1748032813047,1.0838709,662.96,662.27,1.46961811]
[1748032813352,1.08410919,662.95,662.27,1.46961811]
[1748032813551,1.11680473,663.03,662.27,1.46961811]
[1748032813752,1.56206235,663.02,662.27,1.46961811]
[1748032813952,2.67886708,663.01,662.29,1.46961811]
[1748032814153,1.56206235,663.0,662.29,1.46961811]
[1748032814453,1.08410827,662.99,662.29,1.46961811]
[1748032814653,1.08425534,662.98,662.29,1.46961811]
[1748032814952,1.08425534,662.97,662.29,1.46961811]
[1748032815155,1.08425534,662.96,662.29,1.46961811]
[1748032815354,1.08425534,662.95,662.29,1.46961811]
[1748032815555,1.08425534,662.94,662.29,1.46961811]
[1748032815749,1.11680473,663.01,662.29,1.46961811]
[1748032815951,1.56243744,663.0,662.29,1.46961811]
[1748032816152,1.56243744,662.99,662.29,1.46961811]
[1748032816353,1.08436859,662.98,662.29,1.46961811]
[1748032816547,1.08436859,662.97,662.29,1.46961811]
[1748032816748,1.11680473,663.01,662.29,1.46961811]
[1748032816749,1.08436859,662.96,662.29,1.46961811]
[1748032816953,1.08452896,662.95,662.29,1.46961811]
[1748032817154,1.08452896,662.94,662.29,1.46961811]
[1748032817351,1.08476211,662.93,662.29,1.46961811]
[1748032817555,1.11680473,663.01,662.28,1.46961811]
[1748032817757,1.56301828,663.0,662.28,1.46961811]
[1748032817955,1.56301828,662.99,662.28,1.46961811]
[1748032818154,1.56301828,662.98,662.28,1.46961811]
[1748032818352,1.56313235,662.97,662.28,1.46961811]
[1748032818551,1.08476205,662.96,662.28,1.46961811]
[1748032818857,1.08476205,662.95,662.28,1.46961811]
[1748032819055,1.08476205,662.94,662.28,1.46961811]
[1748032819259,1.08476205,662.93,662.28,1.46961811]
[1748032819453,1.11680473,663.01,662.28,1.46961811]
[1748032819454,1.08476205,662.92,662.28,1.46961811]
[1748032819652,1.11680473,663.01,662.28,1.46961811]
[1748032819653,1.08537199,662.91,662.28,1.46961811]
[1748032819956,1.11680473,663.01,662.28,1.46961811]
[1748032820153,1.56389184,663.0,662.28,1.46961811]
[1748032820356,1.56389184,662.99,662.28,1.46961811]
[1748032820558,1.56394477,662.98,662.28,1.46961811]
[1748032820857,1.56394477,662.97,662.28,1.46961811]
[1748032821053,1.56394477,662.96,662.28,1.46961811]
[1748032821257,1.08540523,662.95,662.28,1.46961811]
[1748032821458,1.08540523,662.94,662.31,1.46961811]
[1748032821657,1.08540523,662.93,662.31,1.46961811]
[1748032821857,1.08540523,662.92,662.31,1.46961811]
[1748032822059,1.11680473,662.99,662.31,1.46961811]
[1748032822259,1.56365751,662.98,662.31,1.46961811]
[1748032822458,1.56365751,662.97,662.31,1.46961811]
[1748032822659,1.08520646,662.96,662.31,1.46961811]
[1748032822854,1.08520646,662.95,662.31,1.46961811]
[1748032823058,1.08520646,662.94,662.31,1.46961811]
[1748032823258,1.08520646,662.93,662.31,1.46961811]
[1748032823559,1.11680473,662.99,662.31,1.46961811]
[1748032823759,1.56343013,662.98,662.31,1.46961811]
[1748032824059,1.11680473,662.99,662.31,1.46961811]
[1748032824261,1.11680473,663.0,662.32,1.46961811]
[1748032827059,1.146,663.02,662.41,1.46961811]
[1748032829863,1.146,663.02,662.54,1.46961811]
[1748032833463,1.146,663.02,662.5,1.46961811]
[1748032836966,1.146,663.02,662.56,1.46961811]
[1748032840369,1.146,663.02,662.55,1.46961811]
[1748032844872,1.146,663.02,662.27,1.46961811]
[1748032848674,1.146,663.02,662.23,1.46961811]
[1748032851670,1.146,663.02,662.32,1.46961811]
[1748032851876,1.11680473,663.27,662.32,1.46961811]
[1748032852071,1.07875598,663.26,662.32,1.46961811]
[1748032852275,1.07875598,663.25,662.32,1.46961811]
[1748032852474,1.07875598,663.24,662.32,1.46961811]
[1748032852675,1.07875598,663.23,662.32,1.46961811]
[1748032852875,1.11680473,663.27,662.32,1.46961811]
[1748032853274,1.07884447,663.26,662.32,1.46961811]
[1748032853471,1.07884447,663.25,662.32,1.46961811]
[1748032853677,1.07884447,663.24,662.32,1.46961811]
[1748032853876,1.07884447,663.23,662.32,1.46961811]
[1748032854076,1.07886394,663.22,662.32,1.46961811]
[1748032854273,1.662,663.23,662.32,1.46961811]
[1748032854577,1.07894896,663.22,662.32,1.46961811]
[1748032854879,1.662,663.23,662.34,1.46961811]
[1748032855178,1.07901802,663.22,662.34,1.46961811]
[1748032855379,1.0789976,663.21,662.34,1.46961811]
[1748032855572,1.662,663.23,662.34,1.46961811]
[1748032855776,1.07900546,663.22,662.34,1.46961811]
[1748032855973,1.662,663.23,662.34,1.46961811]
[1748032856179,1.07900546,663.22,662.34,1.46961811]
[1748032856380,1.07900546,663.21,662.34,1.46961811]
[1748032856581,1.662,663.23,662.34,1.46961811]
[1748032856782,1.07907788,663.22,662.34,1.46961811]
[1748032856975,1.07907788,663.21,662.34,1.46961811]
[1748032857180,1.662,663.23,662.34,1.46961811]
[1748032857375,1.07914636,663.22,662.34,1.46961811]
[1748032857576,1.662,663.23,662.34,1.46961811]
[1748032857781,1.07916076,663.22,662.39,1.46961811]
[1748032857981,1.662,663.23,662.39,1.46961811]
[1748032858181,1.07915571,663.22,662.39,1.46961811]
[1748032858381,1.07922505,663.21,662.39,1.46961811]
[1748032858582,1.662,663.23,662.39,1.46961811]
[1748032858777,1.07922521,663.22,662.39,1.46961811]
[1748032858981,1.07922521,663.21,662.39,1.46961811]
[1748032859178,1.662,663.23,662.39,1.46961811]
[1748032859380,1.0792997,663.22,662.39,1.46961811]
[1748032859578,1.0792997,663.21,662.39,1.46961811]
[1748032859778,1.662,663.23,662.39,1.46961811]
[1748032859981,1.07930413,663.22,662.39,1.46961811]
[1748032860179,1.07930413,663.21,662.39,1.46961811]
[1748032860484,1.662,663.23,662.39,1.46961811]
[1748032860685,1.0793352,663.22,662.39,1.46961811]
[1748032860985,1.0793352,663.21,662.33,1.46961811]
[1748032861186,1.07932334,663.2,662.33,1.46961811]
[1748032861383,1.662,663.23,662.33,1.46961811]
[1748032861580,1.07932141,663.22,662.33,1.46961811]
[1748032861781,1.07932141,663.21,662.33,1.46961811]
[1748032862086,1.07932141,663.2,662.33,1.46961811]
[1748032862283,1.07932141,663.19,662.33,1.46961811]
[1748032862490,1.07932141,663.18,662.33,1.46961811]
[1748032862689,1.07932141,663.17,662.33,1.46961811]
[1748032862891,1.07932141,663.16,662.33,1.46961811]
[1748032863091,1.662,663.23,662.33,1.46961811]
[1748032863292,1.55507319,663.22,662.33,1.46961811]
[1748032863491,1.662,663.23,662.33,1.46961811]
[1748032863492,1.55507319,663.21,662.33,1.46961811]
[1748032863689,1.07929053,663.2,662.33,1.46961811]
[1748032863893,1.07929053,663.19,662.33,1.46961811]
[1748032864095,1.07929053,663.18,662.33,1.46961811]
[1748032864289,1.07929053,663.17,662.33,1.46961811]
[1748032864488,1.11680473,663.22,662.29,1.46961811]
[1748032864788,1.07918751,663.21,662.29,1.46961811]
[1748032864992,1.07918751,663.2,662.29,1.46961811]
[1748032865192,1.07918751,663.19,662.29,1.46961811]
[1748032865391,1.07918751,663.18,662.29,1.46961811]
[1748032865593,1.07918751,663.17,662.29,1.46961811]
[1748032865791,1.07918751,663.16,662.29,1.46961811]
[1748032866090,1.07918751,663.15,662.29,1.46961811]
[1748032866294,1.07918751,663.14,662.29,1.46961811]
[1748032866595,1.11680473,663.22,662.29,1.46961811]
[1748032866791,1.55486881,663.21,662.29,1.46961811]
[1748032866996,1.55486881,663.2,662.29,1.46961811]
[1748032867198,1.5548467,663.19,662.29,1.46961811]
[1748032867497,2.67165143,663.18,662.26,1.46961811]
[1748032867693,1.5548467,663.17,662.26,1.46961811]
[1748032867900,0.47572685,663.16,662.26,1.46961811]
[1748032868199,1.55477396,663.15,662.26,1.46961811]
[1748032868400,1.55477396,663.14,662.26,1.46961811]
[1748032868601,1.07904711,663.13,662.26,1.46961811]
[1748032868800,1.07904711,663.12,662.26,1.46961811]
[1748032868997,1.07904711,663.11,662.26,1.46961811]
[1748032869202,1.07904711,663.1,662.26,1.46961811]
[1748032869401,1.07904711,663.09,662.26,1.46961811]
[1748032869701,1.11680473,663.18,662.26,1.46961811]
[1748032869906,1.07900046,663.17,662.26,1.46961811]
[1748032870101,1.11680473,663.18,662.26,1.46961811]
[1748032870102,1.55468435,663.16,662.26,1.46961811]
[1748032870301,1.55468435,663.15,662.26,1.46961811]
[1748032870502,1.55468435,663.14,662.26,1.46961811]
[1748032870701,1.662,663.23,662.21,1.46961811]
[1748032870702,1.07900046,663.13,662.21,1.46961811]
[1748032870898,1.07900046,663.12,662.21,1.46961811]
[1748032871102,1.07900046,663.11,662.21,1.46961811]
[1748032871304,1.07893671,663.1,662.21,1.46961811]
[1748032871603,1.07893671,663.09,662.21,1.46961811]
[1748032871798,1.11680473,663.15,662.21,1.46961811]
[1748032872003,1.55455258,663.14,662.21,1.46961811]
[1748032872301,1.07891366,663.13,662.21,1.46961811]
[1748032872503,1.07891366,663.12,662.21,1.46961811]
[1748032872700,1.07891366,663.11,662.21,1.46961811]
[1748032872904,1.07891366,663.1,662.21,1.46961811]
[1748032873105,1.07893689,663.09,662.21,1.46961811]
[1748032873406,1.11680473,663.15,662.21,1.46961811]
[1748032873602,1.55459655,663.14,662.21,1.46961811]
[1748032873799,1.07894406,663.13,662.21,1.46961811]
[1748032874003,1.07894406,663.12,662.21,1.46961811]
[1748032874205,1.07894406,663.11,662.24,1.46961811]
[1748032874506,1.07894406,663.1,662.24,1.46961811]
[1748032874705,1.07894406,663.09,662.24,1.46961811]
[1748032874907,1.11680473,663.14,662.24,1.46961811]
[1748032875106,1.07894007,663.13,662.24,1.46961811]
[1748032875305,1.07894007,663.12,662.24,1.46961811]
[1748032875505,1.07894007,663.11,662.24,1.46961811]
[1748032875703,1.07894007,663.1,662.24,1.46961811]
[1748032875902,1.07894007,663.09,662.24,1.46961811]
[1748032876102,1.11680473,663.14,662.24,1.46961811]
[1748032876302,1.07888079,663.13,662.24,1.46961811]
[1748032876507,1.07888079,663.12,662.24,1.46961811]
[1748032876707,1.07888079,663.11,662.24,1.46961811]
[1748032876910,1.0788791,663.1,662.24,1.46961811]
[1748032877106,1.0788791,663.09,662.24,1.46961811]
[1748032877303,1.11680473,663.14,662.24,1.46961811]
[1748032877504,1.07885629,663.13,662.24,1.46961811]
[1748032877706,1.07885629,663.12,662.24,1.46961811]
[1748032877905,1.07885629,663.11,662.24,1.46961811]
[1748032878107,1.07885629,663.1,662.24,1.46961811]
[1748032878313,1.07885629,663.09,662.24,1.46961811]
[1748032878513,1.11680473,663.14,662.24,1.46961811]
[1748032878711,1.07889449,663.13,662.24,1.46961811]
[1748032879012,1.07889449,663.12,662.24,1.46961811]
[1748032879204,1.07889449,663.11,662.24,1.46961811]
[1748032879413,1.07889449,663.1,662.24,1.46961811]
[1748032879605,1.07889449,663.09,662.24,1.46961811]
[1748032879809,1.11680473,663.14,662.24,1.46961811]
[1748032880012,1.07890081,663.13,662.24,1.46961811]
[1748032880207,1.07890081,663.12,662.24,1.46961811]
[1748032880410,1.07890081,663.11,662.24,1.46961811]
[1748032880608,1.07890081,663.1,662.24,1.46961811]
[1748032880806,1.07890081,663.09,662.24,1.46961811]
[1748032881011,1.11680473,663.12,662.28,1.46961811]
[1748032881209,1.07891311,663.11,662.28,1.46961811]
[1748032881410,1.07891311,663.1,662.28,1.46961811]
[1748032881612,1.07891311,663.09,662.28,1.46961811]
[1748032881812,1.11680473,663.12,662.28,1.46961811]
[1748032882013,1.07893542,663.11,662.28,1.46961811]
[1748032882215,1.07893542,663.1,662.28,1.46961811]
[1748032882512,1.07893542,663.09,662.28,1.46961811]
[1748032882714,1.11680473,663.12,662.28,1.46961811]
[1748032882914,1.07896196,663.11,662.28,1.46961811]
[1748032883114,1.07896196,663.1,662.28,1.46961811]
[1748032883413,1.07896196,663.09,662.28,1.46961811]
[1748032883613,1.11680473,663.12,662.28,1.46961811]
[1748032883814,1.07900263,663.11,662.26,1.46961811]
[1748032884014,1.07900263,663.1,662.26,1.46961811]
[1748032884310,1.07900263,663.09,662.26,1.46961811]
[1748032884514,1.11680473,663.12,662.26,1.46961811]
[1748032884714,1.07895536,663.11,662.26,1.46961811]
[1748032884915,1.07895536,663.1,662.26,1.46961811]
[1748032885109,1.07895536,663.09,662.26,1.46961811]
[1748032885307,1.11680473,663.12,662.26,1.46961811]
[1748032885512,1.07886777,663.11,662.26,1.46961811]
[1748032885713,1.07886777,663.1,662.26,1.46961811]
[1748032885914,1.07886777,663.09,662.26,1.46961811]
[1748032886116,1.11680473,663.12,662.26,1.46961811]
[1748032886319,1.07881064,663.11,662.26,1.46961811]
[1748032886616,1.07881064,663.1,662.26,1.46961811]
[1748032886816,1.07881064,663.09,662.26,1.46961811]
[1748032887118,1.11680473,663.13,662.26,1.46961811]
[1748032887314,1.07862928,663.12,662.26,1.46961811]
[1748032887517,1.07862928,663.11,662.26,1.46961811]
[1748032887717,1.07858077,663.1,662.26,1.46961811]
[1748032887919,1.07858077,663.09,662.26,1.46961811]
[1748032888119,1.11680473,663.13,662.26,1.46961811]
[1748032888319,1.07858606,663.12,662.26,1.46961811]
[1748032888516,1.11680473,663.13,662.26,1.46961811]
[1748032888517,1.07858606,663.11,662.26,1.46961811]
[1748032888718,1.07858606,663.1,662.26,1.46961811]
[1748032888918,1.07858606,663.09,662.26,1.46961811]
[1748032889111,1.11680473,663.13,662.26,1.46961811]
[1748032889318,1.07855917,663.12,662.26,1.46961811]
[1748032889519,1.07852437,663.11,662.26,1.46961811]
[1748032889715,1.07852437,663.1,662.27,1.46961811]
[1748032889917,1.07852437,663.09,662.27,1.46961811]
[1748032890218,1.07857404,663.08,662.27,1.46961811]
[1748032890415,1.11680473,663.12,662.27,1.46961811]
[1748032890616,1.07859377,663.11,662.27,1.46961811]
[1748032890816,1.07859377,663.1,662.27,1.46961811]
[1748032891014,1.07859377,663.09,662.27,1.46961811]
[1748032891218,1.07859377,663.08,662.27,1.46961811]
[1748032891418,1.11680473,663.12,662.27,1.46961811]
[1748032891618,1.07832391,663.11,662.27,1.46961811]
[1748032891914,1.07832391,663.1,662.27,1.46961811]
[1748032892117,1.07832391,663.09,662.27,1.46961811]
[1748032892317,1.07832391,663.08,662.23,1.46961811]
[1748032892514,1.07832391,663.07,662.23,1.46961811]
[1748032892818,1.11680473,663.14,662.23,1.46961811]
[1748032893015,1.55353924,663.13,662.23,1.46961811]
[1748032893317,1.55341515,663.12,662.23,1.46961811]
[1748032893519,1.55341515,663.11,662.23,1.46961811]
[1748032893721,1.55341515,663.1,662.23,1.46961811]
[1748032893922,1.07825262,663.09,662.23,1.46961811]
[1748032894122,1.07825262,663.08,662.23,1.46961811]
[1748032894322,1.07825262,663.07,662.23,1.46961811]
[1748032894622,1.07825262,663.06,662.23,1.46961811]
[1748032894822,1.07825262,663.05,662.23,1.46961811]
[1748032895018,1.07850736,663.04,662.23,1.46961811]
[1748032895219,1.5537113,663.03,662.23,1.46961811]
[1748032895421,1.5537113,663.02,662.23,1.46961811]
[1748032895619,1.5537113,663.01,662.2,1.46961811]
[1748032895822,1.5537113,663.0,662.2,1.46961811]
[1748032896022,1.5537113,662.99,662.2,1.46961811]
[1748032896225,1.5537113,662.98,662.2,1.46961811]
[1748032896416,1.5537113,662.97,662.2,1.46961811]
[1748032896621,1.07850736,662.96,662.2,1.46961811]
[1748032896821,1.07850736,662.95,662.2,1.46961811]
[1748032897023,1.07850736,662.94,662.2,1.46961811]
[1748032897222,1.07850736,662.93,662.2,1.46961811]
[1748032897520,1.07850736,662.92,662.2,1.46961811]
[1748032897716,1.11680473,663.12,662.2,1.46961811]
[1748032897921,1.55410493,663.11,662.2,1.46961811]
[1748032898122,2.23360946,663.4,661.45,0.4786009]
[1748032898123,1.11680473,663.07,661.97,1.46961811]
[1748032898323,1.55410493,663.06,661.97,1.46961811]
[1748032898519,1.55410493,663.05,661.97,1.46961811]
[1748032898725,1.55410493,663.04,661.97,1.46961811]
[1748032898919,1.55410493,663.03,661.97,1.46961811]
[1748032899122,1.55410493,663.02,661.97,1.46961811]
[1748032899422,1.55410493,663.01,661.97,1.46961811]
[1748032899621,1.55410493,663.0,661.97,1.46961811]
[1748032899820,1.55410493,662.99,661.97,1.46961811]
[1748032900023,1.55410493,662.98,661.97,1.46961811]
[1748032900226,1.55410493,662.97,661.97,1.46961811]
[1748032900425,1.55484702,662.96,661.97,1.46961811]
[1748032900623,1.07946056,662.95,662.0,1.46961811]
[1748032900826,1.07946056,662.94,662.0,1.46961811]
[1748032901030,1.07946056,662.93,662.0,1.46961811]
[1748032901230,1.07946056,662.92,662.0,1.46961811]
[1748032901431,1.07946056,662.91,662.0,1.46961811]
[1748032901633,1.373,663.02,662.0,1.46961811]
[1748032901829,1.55553454,663.01,662.0,1.46961811]
[1748032902032,1.55553454,663.0,662.0,1.46961811]
[1748032902230,1.55553454,662.99,662.02,1.46961811]
[1748032902435,1.5558986,662.98,662.02,1.46961811]
[1748032902629,1.5558986,662.97,662.02,1.46961811]
[1748032902827,1.5558986,662.96,662.02,1.46961811]
[1748032903031,1.5558986,662.95,662.02,1.46961811]
[1748032903230,1.08003574,662.94,662.02,1.46961811]
[1748032903428,1.08003574,662.93,662.02,1.46961811]
[1748032903626,1.08003574,662.92,662.02,1.46961811]
[1748032903829,1.08003574,662.91,662.02,1.46961811]
[1748032904028,1.08003574,662.9,662.02,1.46961811]
[1748032904227,1.373,663.02,662.02,1.46961811]
[1748032904434,1.55585177,663.01,662.02,1.46961811]
[1748032904731,1.55585177,663.0,662.02,1.46961811]
[1748032904931,1.55585177,662.99,662.02,1.46961811]
[1748032905127,1.373,663.02,662.02,1.46961811]
[1748032905128,1.55585177,662.98,662.02,1.46961811]
[1748032905434,1.11680473,662.96,661.92,1.46961811]
[1748032905629,1.55585177,662.95,661.92,1.46961811]
[1748032905934,1.55510947,662.94,661.92,1.46961811]
[1748032906233,1.55510947,662.93,661.92,1.46961811]
[1748032906433,1.55510947,662.92,661.92,1.46961811]
[1748032906633,1.55510947,662.91,661.92,1.46961811]
[1748032906933,1.55510947,662.9,661.92,1.46961811]
[1748032907233,1.55510947,662.89,661.92,1.46961811]
[1748032907434,1.55510947,662.88,661.92,1.46961811]
[1748032907634,1.55510947,662.87,661.92,1.46961811]
[1748032907934,1.07943927,662.86,661.92,1.46961811]
[1748032908133,1.07943927,662.85,661.9,1.46961811]
[1748032908336,1.07943927,662.84,661.9,1.46961811]
[1748032908534,1.07943927,662.83,661.9,1.46961811]
[1748032908730,1.07943927,662.82,661.9,1.46961811]
[1748032908934,1.11680473,662.96,661.9,1.46961811]
[1748032909135,1.55413261,662.95,661.9,1.46961811]
[1748032909336,1.55413261,662.94,661.9,1.46961811]
[1748032909539,1.55413261,662.93,661.9,1.46961811]
[1748032909733,1.55413261,662.92,661.9,1.46961811]
[1748032909935,1.55413261,662.91,661.9,1.46961811]
[1748032910131,1.55413261,662.9,661.9,1.46961811]
[1748032910335,1.55413261,662.89,661.9,1.46961811]
[1748032910532,1.55413261,662.88,661.9,1.46961811]
[1748032910736,1.55413261,662.87,661.9,1.46961811]
[1748032911036,1.55413261,662.86,661.9,1.46961811]
[1748032911232,1.55413261,662.85,661.9,1.46961811]
[1748032911538,1.11680473,662.79,661.94,1.46961811]
[1748032911739,1.07878043,662.78,661.94,1.46961811]
[1748032912037,1.07878043,662.77,661.94,1.46961811]
[1748032912239,1.07878043,662.76,661.94,1.46961811]
[1748032912434,1.11680473,662.79,661.94,1.46961811]
[1748032912636,1.07738721,662.78,661.94,1.46961811]
[1748032912837,1.07738721,662.77,661.94,1.46961811]
[1748032913039,1.07738721,662.76,661.94,1.46961811]
[1748032913236,1.07738721,662.75,661.94,1.46961811]
[1748032913440,1.11680473,662.79,661.94,1.46961811]
[1748032913640,1.07719127,662.78,661.94,1.46961811]
[1748032913935,1.07719127,662.77,661.94,1.46961811]
[1748032914140,1.07719127,662.76,661.94,1.46961811]
[1748032914335,1.11680473,662.79,661.94,1.46961811]
[1748032914539,1.07691052,662.78,661.94,1.46961811]
[1748032914740,1.11680473,662.82,661.91,1.46961811]
[1748032914935,1.07699917,662.81,661.91,1.46961811]
[1748032915139,1.11680473,662.82,661.91,1.46961811]
[1748032918845,1.373,663.02,661.96,1.46961811]
[1748032918846,1.11680473,662.88,661.96,1.46961811]
[1748032919046,1.07721034,662.87,661.96,1.46961811]
[1748032919239,1.07721034,662.86,661.96,1.46961811]
[1748032919444,1.07721034,662.85,661.96,1.46961811]
[1748032919644,1.07721034,662.84,661.96,1.46961811]
[1748032919947,1.07721034,662.83,661.96,1.46961811]
[1748032920146,1.07721034,662.82,661.96,1.46961811]
[1748032920342,1.11680473,662.88,661.96,1.46961811]
[1748032920546,1.55183882,662.87,661.96,1.46961811]
[1748032920746,1.07725148,662.86,661.96,1.46961811]
[1748032920946,1.07725148,662.85,661.96,1.46961811]
[1748032921152,1.07725148,662.84,661.96,1.46961811]
[1748032921446,1.07725148,662.83,662.01,1.46961811]
[1748032921647,1.07725148,662.82,662.01,1.46961811]
[1748032921842,1.11680473,662.85,662.01,1.46961811]
[1748032922046,1.07729697,662.84,662.01,1.46961811]
[1748032922245,1.07729697,662.83,662.01,1.46961811]
[1748032922443,1.07729697,662.82,662.01,1.46961811]
[1748032922648,1.11680473,662.85,662.01,1.46961811]